fUSD/lending_fUSD_20251201
["ID","MTS","AMOUNT","RATE_DAILY","PERIOD"]
[395323224,1764624632356,-166.66,0.00014257,2]
[395323225,1764624632365,-254.0,0.00014346,2]
[395323226,1764624632375,-1200.0,0.00014346,2]
[395323227,1764624632384,-500.0,0.00014347,2]
[395323228,1764624632393,-209.05267348,0.00014347,2]
[395323229,1764624632402,-523.25888436,0.00014347,2]
[395323230,1764624632412,-150.3925987,0.00014347,2]
[395323231,1764624632421,-500.0,0.00014347,2]
[395323232,1764624632431,-500.0,0.00014347,2]
[395323233,1764624632440,-500.0,0.00014347,2]
[395323234,1764624632449,-172.23995625,0.00014347,2]
[395323235,1764624632458,-500.0,0.00014347,2]
[395323236,1764624632467,-500.0,0.00014347,2]
[395323237,1764624632476,-500.0,0.00014347,2]
[395323238,1764624632485,-500.0,0.00014347,2]
[395323239,1764624632494,-500.0,0.00014347,2]
[395323240,1764624632503,-500.0,0.00014347,2]
[395323242,1764624632512,-500.0,0.00014347,2]
[395323244,1764624632522,-500.0,0.00014347,2]
[395323246,1764624632530,-500.0,0.00014347,2]
[395323248,1764624632539,-529.41270866,0.00014347,2]
[395323249,1764624632549,-500.0,0.00014347,2]
[395323251,1764624632558,-500.0,0.00014347,2]
[395323253,1764624632567,-500.0,0.00014347,2]
[395323255,1764624632578,-500.0,0.00014347,2]
[395323256,1764624632587,-500.0,0.00014347,2]
[395323257,1764624632596,-470.9439378,0.00014347,2]
[395323258,1764624632605,-156.64536836,0.00014347,2]
[395323259,1764624632616,-500.0,0.00014347,2]
[395323260,1764624632626,-500.0,0.00014347,2]
[395323261,1764624632635,-350.0,0.00014347,2]
[395323263,1764624632645,-1000.0,0.00014348,2]
[395323265,1764624632654,-1000.0,0.00014348,2]
[395323267,1764624632663,-219171.62253625,0.00014348,2]
[395323269,1764624632675,-614.50389,0.00014348,2]
[395323272,1764624632686,-4317.13687632,0.00014348,2]
[395323274,1764624632697,-1206.31663784,0.00014348,2]
[395323278,1764624632729,-1023.31953828,0.00014348,2]
[395323280,1764624632740,-1693.63405355,0.00014348,2]
[395323282,1764624632755,-105440.08060203,0.00014348,2]
[395323283,1764624632766,-2662.04405425,0.00014348,2]
[395323299,1764624638385,-423871.34181148,0.00014348,2]
[395323301,1764624638395,-1807.7042,0.00014348,2]
[395323303,1764624638405,-999.0,0.00014392,3]
[395323305,1764624638415,-1242.94,0.00014439,2]
[395323307,1764624638425,-151.0,0.00014439,2]
[395323309,1764624638435,-151.0,0.00014439,2]
[395323311,1764624638445,-151.0,0.00014439,2]
[395323314,1764624638455,-151.0,0.00014439,2]
[395323316,1764624638464,-151.0,0.00014439,2]
[395323318,1764624638474,-151.0,0.00014439,2]
[395323320,1764624638484,-151.0,0.00014439,2]
[395323322,1764624638494,-151.0,0.00014439,2]
[395323324,1764624638504,-151.0,0.00014439,2]
[395323326,1764624638514,-151.0,0.00014439,2]
[395323328,1764624638524,-151.0,0.00014439,2]
[395323330,1764624638534,-151.0,0.00014439,2]
[395323332,1764624638546,-151.0,0.00014439,2]
[395323335,1764624638555,-151.0,0.00014439,2]
[395323337,1764624638565,-151.0,0.00014439,2]
[395323340,1764624638575,-151.0,0.00014439,2]
[395323342,1764624638586,-151.0,0.00014439,2]
[395323345,1764624638596,-151.0,0.00014439,2]
[395323346,1764624638606,-151.0,0.00014439,2]
[395323348,1764624638616,-151.0,0.00014439,2]
[395323349,1764624638626,-500.0,0.00014447,2]
[395323350,1764624638635,-500.0,0.00014447,2]
[395323351,1764624638645,-293.8,0.00014447,2]
[395323352,1764624638655,-500.0,0.00014447,2]
[395323353,1764624638665,-500.0,0.00014447,2]
[395323354,1764624638674,-500.0,0.00014447,2]
[395323355,1764624638684,-500.0,0.00014447,2]
[395323356,1764624638694,-500.0,0.00014447,2]
[395323357,1764624638704,-500.0,0.00014447,2]
[395323358,1764624638713,-500.0,0.00014447,2]
[395323359,1764624638723,-500.0,0.00014447,2]
[395323360,1764624638732,-500.0,0.00014447,2]
[395323361,1764624638742,-500.0,0.00014447,2]
[395323362,1764624638752,-500.0,0.00014447,2]
[395323363,1764624638762,-500.0,0.00014447,2]
[395323364,1764624638771,-500.0,0.00014447,2]
[395323365,1764624638781,-500.0,0.00014447,2]
[395323366,1764624638791,-391.07433135,0.00014447,2]
[395323367,1764624638800,-161.6911003,0.00014448,2]
[395323368,1764624638810,-894.9886991,0.00014448,2]
[395323369,1764624638820,-150.89015,0.00014448,2]
[395323370,1764624638830,-342.0,0.00014483,2]
[395323371,1764624638839,-264.0,0.00014483,2]
[395323372,1764624638848,-7392.16,0.00014486,2]
[395323373,1764624638858,-264.05,0.00014504,2]
[395323374,1764624638868,-9999.99,0.00014504,2]
[395323375,1764624638878,-9999.99,0.00014504,2]
[395323376,1764624638888,-150.99,0.00014504,2]
[395323377,1764624638897,-117.87366966,0.00014504,2]
[395323380,1764624640277,-882.11633034,0.00014504,2]
[395323381,1764624640287,-2117.34,0.00014504,2]
[395323382,1764624640296,-299.99,0.00014504,2]
[395323383,1764624640305,-9999.99,0.00014504,2]
[395323384,1764624640315,-4065.28892948,0.00014504,2]
[395323385,1764624640358,-734.24872932,0.00014504,2]
[395323386,1764624640369,-1310.8723412,0.00014504,2]
[395323387,1764624640379,-489.99037702,0.00014504,2]
[395323388,1764624640452,-414.60962298,0.00014504,2]
[395323389,1764624640461,-150.99,0.00014504,2]
[395323390,1764624640471,-76334.37,0.00014504,2]
[395323391,1764624640480,-378.0,0.00014512,2]
[395323392,1764624640489,-402.0,0.00014512,2]
[395323393,1764624640498,-866.0,0.00014541,2]
[395323394,1764624640507,-487.0,0.00014541,2]
[395323395,1764624640517,-1911.50447259,0.00014543,2]
[395323396,1764624640526,-500.0,0.00014547,2]
[395323397,1764624640535,-166.66,0.00014557,2]
[395323398,1764624640544,-450.0,0.0001457,2]
[395323399,1764624640554,-1693.63,0.00014586,2]
[395323400,1764624640564,-1461.0,0.00014599,2]
[395323401,1764624640574,-638.0,0.00014628,2]
[395323402,1764624640585,-394.01424542,0.00014647,2]
[395323403,1764624640594,-500.0,0.00014647,2]
[395323404,1764624640604,-500.0,0.00014647,2]
[395323405,1764624640614,-500.0,0.00014647,2]
[395323406,1764624640624,-500.0,0.00014647,2]
[395323407,1764624640634,-500.0,0.00014647,2]
[395323408,1764624640643,-500.0,0.00014647,2]
[395323409,1764624640653,-500.0,0.00014647,2]
[395323410,1764624640662,-588.13801086,0.00014647,2]
[395323411,1764624640672,-500.0,0.00014647,2]
[395323413,1764624640682,-500.0,0.00014647,2]
[395323414,1764624640691,-500.0,0.00014647,2]
[395323415,1764624640702,-500.0,0.00014647,2]
[395323416,1764624640711,-1242.94,0.00014713,2]
[395323417,1764624640721,-500.0,0.00014747,2]
[395323418,1764624640731,-500.0,0.00014747,2]
[395323419,1764624640741,-556.83585957,0.00014747,2]
[395323420,1764624640751,-500.0,0.00014747,2]
[395323421,1764624640760,-500.0,0.00014747,2]
[395323422,1764624640770,-500.0,0.00014747,2]
[395323423,1764624640780,-500.0,0.00014747,2]
[395323424,1764624640789,-500.0,0.00014747,2]
[395323425,1764624640798,-500.0,0.00014747,2]
[395323426,1764624640808,-500.0,0.00014747,2]
[395323427,1764624640817,-82500.91413138,0.00014775,2]
[395323428,1764624640827,-179.33,0.00014775,2]
[395323429,1764624640837,-500.0,0.00014784,2]
[395323430,1764624640846,-1911.50447259,0.00014837,2]
[395323431,1764624640856,-166.66,0.00014858,2]
[395323432,1764624640865,-250.0,0.00014885,2]
[395323433,1764624640875,-1122.00430531,0.00014896,2]
[395323434,1764624640884,-328.59727827,0.00014913,2]
[395323435,1764624640893,-500.0,0.00014921,2]
[395323436,1764624640902,-1242.94,0.00014987,2]
[395323437,1764624640912,-3901.42886975,0.00014999,2]
[395323438,1764624640921,-770.98935679,0.00015,2]
[395323439,1764624640931,-1192.8279898,0.00015,2]
[395323440,1764624640940,-23451.80063099,0.00015,4]
[395323441,1764624640949,-53478.05660431,0.00015,2]
[395323442,1764624640959,-2281.62,0.00015035,2]
[395323443,1764624640968,-500.0,0.00015058,2]
[395323444,1764624640983,-1499.0,0.00015068,2]
[395323445,1764624640991,-500.0,0.0001507,2]
[395323446,1764624641000,-500.0,0.0001507,2]
[395323447,1764624641011,-500.0,0.0001507,2]
[395323448,1764624641023,-1911.50447259,0.00015132,2]
[395323449,1764624641032,-166.66,0.00015158,2]
[395323450,1764624641041,-500.0,0.00015195,2]
[395323451,1764624641051,-1242.94,0.00015261,2]
[395323452,1764624641061,-170.96,0.00015291,2]
[395323453,1764624641070,-1517.64,0.000153,2]
[395323454,1764624641079,-500.0,0.00015332,2]
[395323455,1764624641089,-16591.30030918,0.000154,2]
[395323456,1764624641098,-504.59701012,0.000154,2]
[395323457,1764624641108,-1911.50447259,0.00015427,2]
[395323458,1764624641117,-166.66,0.00015458,2]
[395323459,1764624641126,-500.0,0.00015469,2]
[395323460,1764624641138,-87314.39848645,0.000155,2]
[395323461,1764624641147,-1242.94,0.00015535,2]
[395323462,1764624641156,-500.0,0.00015606,2]
[395323463,1764624641165,-1911.50447259,0.00015721,2]
[395323464,1764624641174,-500.0,0.00015743,2]
[395323465,1764624641184,-166.66,0.00015758,2]
[395323466,1764624641193,-500.0,0.00015763,2]
[395323467,1764624641202,-2223.21323629,0.00015807,2]
[395323468,1764624641211,-1242.94,0.00015809,2]
[395323469,1764624641220,-500.0,0.0001588,2]
[395323470,1764624641230,-315.88349156,0.000159,2]
[395323471,1764624641239,-315.88349156,0.000159,2]
[395323472,1764624641248,-315.88349156,0.000159,2]
[395323473,1764624641257,-182.42815086,0.00015917,2]
[395323474,1764624641267,-439.12130725,0.00015917,2]
[395323475,1764624641276,-216.06157058,0.00015917,2]
[395323476,1764624641285,-500.0,0.00015999,2]
[395323477,1764624641295,-500.0,0.00015999,2]
[395323478,1764624641311,-500.0,0.00015999,2]
[395323479,1764624641321,-500.0,0.00015999,2]
[395323480,1764624641330,-500.0,0.00015999,2]
[395323481,1764624641339,-500.0,0.00015999,2]
[395323482,1764624641349,-500.0,0.00015999,2]
[395323483,1764624641359,-500.0,0.00015999,2]
[395323484,1764624641368,-500.0,0.00015999,2]
[395323485,1764624641377,-500.0,0.00015999,2]
[395323486,1764624641386,-500.0,0.00015999,2]
[395323487,1764624641395,-500.0,0.00015999,2]
[395323488,1764624641406,-500.0,0.00015999,2]
[395323489,1764624641415,-500.0,0.00015999,2]
[395323490,1764624641424,-500.0,0.00015999,2]
[395323491,1764624641433,-500.0,0.00015999,2]
[395323492,1764624641443,-500.0,0.00015999,2]
[395323493,1764624641455,-500.0,0.00015999,2]
[395323494,1764624641467,-291.28618921,0.00015999,2]
[395323495,1764624641476,-500.0,0.00015999,2]
[395323496,1764624641485,-216.0958378,0.00015999,2]
[395323497,1764624641495,-500.0,0.00015999,2]
[395323498,1764624641503,-500.0,0.00015999,2]
[395323499,1764624641512,-293.67,0.00015999,2]
[395323500,1764624641522,-500.0,0.00015999,2]
[395323501,1764624641531,-500.0,0.00015999,2]
[395323502,1764624641541,-500.0,0.00015999,2]
[395323503,1764624641551,-500.0,0.00015999,2]
[395323504,1764624641560,-500.0,0.00015999,2]
[395323505,1764624641569,-500.0,0.00015999,2]
[395323506,1764624641579,-500.0,0.00015999,2]
[395323507,1764624641589,-500.0,0.00015999,2]
[395323508,1764624641598,-500.0,0.00015999,2]
[395323509,1764624641607,-500.0,0.00015999,2]
[395323510,1764624641617,-500.0,0.00015999,2]
[395323511,1764624641626,-500.0,0.00015999,2]
[395323512,1764624641635,-500.0,0.00015999,2]
[395323513,1764624641645,-500.0,0.00015999,2]
[395323514,1764624641654,-500.0,0.00015999,2]
[395323515,1764624641663,-500.0,0.00015999,2]
[395323516,1764624641673,-413.92477484,0.00015999,2]
[395323517,1764624641683,-1716394.95459065,0.00016,4]
[395323518,1764624641719,-1876.4,0.00016,4]
[395323524,1764624643501,-1420.51727293,0.0001549,2]
[395323525,1764624643511,-430634.48272721,0.00016,4]
[395323527,1764624646360,-750.0,0.00014461,2]
[395323531,1764625599169,2215.0,0.00025,120]
[395323546,1764625831406,-1906.974932,0.00013155,2]
[395323547,1764625831416,-625.55,0.00013171,2]
[395323548,1764625831426,-250.0,0.00013222,2]
[395323549,1764625831437,-185.01081452,0.00013275,2]
[395323550,1764625831447,-150.0,0.00013375,2]
[395323551,1764625831456,-300.0,0.00013526,2]
[395323552,1764625831467,-300.0,0.00013526,2]
[395323553,1764625831476,-225.71809326,0.00013526,2]
[395323554,1764625831487,-569.1863868,0.00013526,2]
[395323555,1764625831498,-405.09551994,0.00013526,2]
[395323556,1764625831508,-2143.64313155,0.00013527,2]
[395323557,1764625831519,-572.575638,0.00013527,2]
[395323558,1764625831530,-2750.0,0.00013527,2]
[395323559,1764625831542,-2151.7138018,0.00013527,2]
[395323560,1764625831553,-1994.57683916,0.00013527,2]
[395323561,1764625831564,-1680.66735613,0.00013527,2]
[395323562,1764625831575,-1016.37328688,0.00013527,2]
[395323563,1764625831587,-701.61386136,0.00013527,2]
[395323564,1764625831598,-6859.00608512,0.00013527,2]
[395323565,1764625831608,-1536.95,0.00013573,2]
[395323566,1764625831618,-200.0,0.00013623,2]
[395323567,1764625831627,-500.74,0.00013699,2]
[395323568,1764625831637,-200.0,0.00013699,2]
[395323569,1764625831646,-174.36,0.00013772,2]
[395323570,1764625831655,-151.0,0.00013897,2]
[395323571,1764625831665,-165.69518681,0.00013899,2]
[395323572,1764625831675,-500.0,0.00013899,2]
[395323573,1764625831684,-500.0,0.00013899,2]
[395323575,1764625831693,-500.0,0.00013899,2]
[395323577,1764625831702,-274.23847628,0.00013899,2]
[395323579,1764625831712,-500.0,0.00013899,2]
[395323581,1764625831721,-500.0,0.00013899,2]
[395323583,1764625831731,-500.0,0.00013899,2]
[395323584,1764625831740,-500.0,0.00013899,2]
[395323585,1764625831750,-500.0,0.00013899,2]
[395323586,1764625831759,-500.0,0.00013899,2]
[395323587,1764625831768,-338.29374682,0.00013899,2]
[395323588,1764625831777,-500.0,0.00013899,2]
[395323590,1764625831786,-500.0,0.00013899,2]
[395323592,1764625831796,-500.0,0.00013899,2]
[395323594,1764625831806,-500.0,0.00013899,2]
[395323596,1764625831815,-500.0,0.00013899,2]
[395323599,1764625831825,-500.0,0.00013899,2]
[395323601,1764625831834,-500.0,0.00013899,2]
[395323603,1764625831844,-500.0,0.00013899,2]
[395323604,1764625831854,-500.0,0.00013899,2]
[395323605,1764625831864,-500.0,0.00013899,2]
[395323606,1764625831873,-500.0,0.00013899,2]
[395323607,1764625831883,-500.0,0.00013899,2]
[395323608,1764625831892,-500.0,0.00013899,2]
[395323609,1764625831902,-500.0,0.00013899,2]
[395323610,1764625831911,-500.0,0.00013899,2]
[395323611,1764625831921,-500.0,0.00013899,2]
[395323612,1764625831930,-500.0,0.00013899,2]
[395323613,1764625831939,-500.0,0.00013899,2]
[395323614,1764625831948,-500.0,0.00013899,2]
[395323615,1764625831958,-500.0,0.00013899,2]
[395323616,1764625831967,-500.0,0.00013899,2]
[395323617,1764625831976,-500.0,0.00013899,2]
[395323618,1764625831985,-500.0,0.00013899,2]
[395323619,1764625831995,-500.0,0.00013899,2]
[395323620,1764625832004,-300.0,0.00013899,2]
[395323621,1764625832014,-866.34,0.00013899,2]
[395323622,1764625832023,-1807.7042,0.000139,2]
[395323623,1764625832032,-67076.49305005,0.000139,2]
[395323624,1764625832044,-4955.5914,0.000139,2]
[395323625,1764625832056,-2351.37,0.000139,2]
[395323626,1764625832066,-6431.72277246,0.000139,2]
[395323627,1764625832081,-466.3369905,0.000139,2]
[395323629,1764625837495,-490.25887355,0.00013899,2]
[395323630,1764625837504,-447.24112645,0.000139,2]
[395323631,1764625837515,-3704.96,0.000139,2]
[395323632,1764625837562,-600151.16828508,0.000139,2]
[395323633,1764625837573,-639.88094719,0.000139,2]
[395323634,1764625837633,-2139.40000018,0.000139,2]
[395323635,1764625837644,-504.0,0.000139,2]
[395323636,1764625837656,-11781.42953689,0.000139,2]
[395323637,1764625837751,-459.61239999,0.000139,2]
[395323655,1764625839519,-576.99438448,0.000139,2]
[395323656,1764625839531,-400.88155885,0.000139,2]
[395323657,1764625839542,-4663.45325746,0.000139,2]
[395323658,1764625839583,-377.88000022,0.000139,2]
[395323659,1764625839595,-1199.99995,0.000139,2]
[395323660,1764625839655,-479.04107656,0.000139,2]
[395323661,1764625839666,-1506.07101574,0.000139,2]
[395323662,1764625839776,-49686.4722479,0.000139,2]
[395323663,1764625839785,-1374.647,0.00013913,2]
[395323664,1764625839795,-160.18,0.00013913,2]
[395323665,1764625839804,-150.0,0.00013996,2]
[395323666,1764625839813,-500.0,0.00013999,2]
[395323667,1764625839822,-500.0,0.00013999,2]
[395323668,1764625839831,-500.0,0.00013999,2]
[395323669,1764625839840,-500.0,0.00013999,2]
[395323670,1764625839849,-500.0,0.00013999,2]
[395323671,1764625839859,-500.0,0.00013999,2]
[395323672,1764625839868,-500.0,0.00013999,2]
[395323673,1764625839878,-500.0,0.00013999,2]
[395323674,1764625839888,-500.0,0.00013999,2]
[395323676,1764625839898,-500.0,0.00013999,2]
[395323678,1764625839908,-500.0,0.00013999,2]
[395323679,1764625839918,-220351.2302,0.00014,2]
[395323680,1764625839928,-10176.87589105,0.00014034,2]
[395323681,1764625839937,-1000.0,0.00014134,2]
[395323682,1764625839947,-487.3136,0.00014148,2]
[395323684,1764625839957,-170.15700211,0.00014148,2]
[395323685,1764625839966,-398.70530573,0.00014148,2]
[395323687,1764625839976,-866.34,0.00014173,2]
[395323688,1764625839985,-250.0,0.000142,2]
[395323689,1764625839995,-251.4,0.000142,2]
[395323690,1764625840004,-161.86739996,0.00014203,2]
[395323691,1764625840014,-1155.0,0.00014207,2]
[395323692,1764625840023,-151.0,0.00014239,2]
[395323693,1764625840033,-151.0,0.00014239,2]
[395323694,1764625840043,-151.0,0.00014239,2]
[395323695,1764625840052,-500.0,0.00014239,2]
[395323696,1764625840062,-151.0,0.00014239,2]
[395323697,1764625840072,-151.0,0.00014239,2]
[395323698,1764625840081,-151.0,0.00014239,2]
[395323699,1764625840091,-151.0,0.00014239,2]
[395323700,1764625840100,-151.0,0.00014239,2]
[395323701,1764625840110,-151.0,0.00014239,2]
[395323702,1764625840120,-151.0,0.00014239,2]
[395323703,1764625840130,-151.0,0.00014239,2]
[395323704,1764625840139,-151.0,0.00014239,2]
[395323705,1764625840149,-151.0,0.00014239,2]
[395323706,1764625840158,-151.0,0.00014239,2]
[395323707,1764625840167,-151.0,0.00014239,2]
[395323708,1764625840176,-200.0,0.00014239,2]
[395323709,1764625840186,-151.0,0.00014239,2]
[395323710,1764625840195,-151.0,0.00014239,2]
[395323711,1764625840204,-151.0,0.00014239,2]
[395323712,1764625840213,-500.0,0.00014239,2]
[395323713,1764625840223,-151.0,0.00014239,2]
[395323714,1764625840232,-500.0,0.00014239,2]
[395323715,1764625840242,-151.0,0.00014239,2]
[395323716,1764625840251,-500.0,0.00014239,2]
[395323717,1764625840261,-165.45120679,0.00014239,2]
[395323718,1764625840271,-500.0,0.00014239,2]
[395323719,1764625840280,-500.0,0.00014239,2]
[395323720,1764625840289,-500.0,0.00014239,2]
[395323721,1764625840299,-500.0,0.00014239,2]
[395323722,1764625840308,-500.0,0.00014239,2]
[395323723,1764625840317,-500.0,0.00014239,2]
[395323724,1764625840326,-500.0,0.00014239,2]
[395323725,1764625840337,-500.0,0.00014239,2]
[395323726,1764625840347,-500.0,0.00014239,2]
[395323727,1764625840359,-500.0,0.00014239,2]
[395323728,1764625840369,-500.0,0.00014239,2]
[395323729,1764625840378,-270.86578806,0.00014239,2]
[395323730,1764625840387,-200.0,0.00014239,2]
[395323731,1764625840397,-151.0,0.00014239,2]
[395323732,1764625840407,-151.0,0.00014239,2]
[395323733,1764625840416,-151.0,0.00014239,2]
[395323734,1764625840426,-151.0,0.00014239,2]
[395323735,1764625840437,-151.0,0.00014239,2]
[395323736,1764625840447,-151.0,0.00014239,2]
[395323737,1764625840456,-151.0,0.00014239,2]
[395323738,1764625840465,-151.0,0.00014239,2]
[395323739,1764625840475,-500.0,0.00014239,2]
[395323740,1764625840484,-151.0,0.00014239,2]
[395323741,1764625840494,-500.0,0.00014239,2]
[395323742,1764625840503,-151.0,0.00014239,2]
[395323743,1764625840513,-500.0,0.00014239,2]
[395323744,1764625840523,-151.0,0.00014239,2]
[395323745,1764625840533,-151.0,0.00014239,2]
[395323746,1764625840543,-500.0,0.00014239,2]
[395323747,1764625840552,-500.0,0.00014239,2]
[395323748,1764625840561,-151.0,0.00014239,2]
[395323749,1764625840571,-500.0,0.00014239,2]
[395323750,1764625840580,-151.0,0.00014239,2]
[395323751,1764625840589,-500.0,0.00014239,2]
[395323752,1764625840599,-500.0,0.00014239,2]
[395323753,1764625840608,-500.0,0.00014239,2]
[395323754,1764625840619,-500.0,0.00014239,2]
[395323755,1764625840628,-500.0,0.00014239,2]
[395323756,1764625840638,-500.0,0.00014239,2]
[395323757,1764625840647,-500.0,0.00014239,2]
[395323758,1764625840657,-500.0,0.00014239,2]
[395323759,1764625840667,-200.0,0.00014239,2]
[395323760,1764625840676,-500.0,0.00014247,2]
[395323761,1764625840685,-500.0,0.00014247,2]
[395323762,1764625840695,-293.8,0.00014247,2]
[395323763,1764625840704,-500.0,0.00014247,2]
[395323764,1764625840713,-500.0,0.00014247,2]
[395323765,1764625840723,-356.63481981,0.00014247,2]
[395323766,1764625840733,-500.0,0.00014247,2]
[395323767,1764625840743,-500.0,0.00014247,2]
[395323768,1764625840752,-571.55421177,0.00014247,2]
[395323769,1764625840762,-648.98,0.00014247,2]
[395323770,1764625840771,-648.98,0.00014247,2]
[395323771,1764625840780,-648.98,0.00014247,2]
[395323772,1764625840791,-648.98,0.00014247,2]
[395323773,1764625840800,-648.98,0.00014247,2]
[395323774,1764625840810,-648.98,0.00014247,2]
[395323775,1764625840820,-648.98,0.00014247,2]
[395323776,1764625840830,-648.98,0.00014247,2]
[395323777,1764625840839,-648.98,0.00014247,2]
[395323778,1764625840848,-648.98,0.00014247,2]
[395323779,1764625841227,-648.98,0.00014247,2]
[395323780,1764625841250,-648.98,0.00014247,2]
[395323781,1764625841260,-648.98,0.00014247,2]
[395323782,1764625841269,-648.98,0.00014247,2]
[395323783,1764625841278,-648.98,0.00014247,2]
[395323784,1764625841288,-648.98,0.00014247,2]
[395323785,1764625841297,-648.98,0.00014247,2]
[395323786,1764625841307,-648.98,0.00014247,2]
[395323787,1764625841316,-648.98,0.00014247,2]
[395323788,1764625841325,-648.98,0.00014247,2]
[395323789,1764625841334,-648.98,0.00014247,2]
[395323790,1764625841344,-648.98,0.00014247,2]
[395323791,1764625841355,-648.98,0.00014247,2]
[395323792,1764625841367,-649.09797429,0.00014247,2]
[395323793,1764625841377,-500.0,0.00014247,2]
[395323794,1764625841386,-500.0,0.00014247,2]
[395323795,1764625841395,-500.0,0.00014247,2]
[395323796,1764625841405,-500.0,0.00014247,2]
[395323797,1764625841415,-500.0,0.00014247,2]
[395323798,1764625841424,-500.0,0.00014247,2]
[395323799,1764625841435,-500.0,0.00014247,2]
[395323800,1764625841445,-500.0,0.00014247,2]
[395323801,1764625841455,-500.0,0.00014247,2]
[395323802,1764625841464,-500.0,0.00014247,2]
[395323803,1764625841474,-500.0,0.00014247,2]
[395323804,1764625841483,-500.0,0.00014247,2]
[395323805,1764625841492,-300.0,0.00014247,2]
[395323806,1764625841501,-300.0,0.00014247,2]
[395323807,1764625841511,-300.0,0.00014247,2]
[395323808,1764625841520,-349.89110636,0.00014247,2]
[395323809,1764625841529,-500.0,0.00014247,2]
[395323810,1764625841539,-500.0,0.00014247,2]
[395323811,1764625841548,-500.0,0.00014247,2]
[395323812,1764625841557,-500.0,0.00014247,2]
[395323813,1764625841567,-628.88445166,0.00014247,2]
[395323814,1764625841576,-500.0,0.00014247,2]
[395323815,1764625841586,-500.0,0.00014247,2]
[395323816,1764625841595,-500.0,0.00014247,2]
[395323817,1764625841604,-500.0,0.00014247,2]
[395323818,1764625841613,-500.0,0.00014247,2]
[395323819,1764625841623,-500.0,0.00014247,2]
[395323820,1764625841632,-434.2840336,0.00014247,2]
[395323821,1764625841641,-500.0,0.00014247,2]
[395323822,1764625841651,-500.0,0.00014247,2]
[395323823,1764625841660,-1000.0,0.00014248,2]
[395323824,1764625841670,-174.36,0.0001434,2]
[395323825,1764625841679,-500.0,0.00014347,2]
[395323826,1764625841688,-500.0,0.00014347,2]
[395323827,1764625841698,-500.0,0.00014347,2]
[395323828,1764625841708,-500.0,0.00014347,2]
[395323829,1764625841717,-500.0,0.00014347,2]
[395323830,1764625841726,-500.0,0.00014347,2]
[395323831,1764625841736,-500.0,0.00014347,2]
[395323832,1764625841746,-500.0,0.00014347,2]
[395323833,1764625841756,-500.0,0.00014347,2]
[395323834,1764625841766,-500.0,0.00014347,2]
[395323835,1764625841775,-500.0,0.00014347,2]
[395323836,1764625841785,-500.0,0.00014347,2]
[395323837,1764625841794,-500.0,0.00014347,2]
[395323838,1764625841803,-500.0,0.00014347,2]
[395323839,1764625841813,-500.0,0.00014347,2]
[395323840,1764625841822,-500.0,0.00014347,2]
[395323841,1764625841831,-500.0,0.00014347,2]
[395323842,1764625841840,-500.0,0.00014347,2]
[395323843,1764625841850,-500.0,0.00014347,2]
[395323844,1764625841859,-391.07433135,0.00014347,2]